fUST/lending_fUST_20260209
["ID","MTS","AMOUNT","RATE_DAILY","PERIOD"]
[404874598,1770641696305,-500.0,0.00049589,120]
[404874599,1770641696332,-500.0,0.00049589,120]
[404874600,1770641696359,-211.65435497,0.00049589,120]
[404874601,1770641696387,-500.0,0.00049589,120]
[404874602,1770641696415,-500.0,0.00049589,120]
[404874603,1770641696441,-500.0,0.00049589,120]
[404874604,1770641696466,-500.0,0.00049589,120]
[404874605,1770641696491,-531.18910455,0.00049589,120]
[404874606,1770641696516,-500.0,0.00049589,120]
[404874607,1770641696542,-500.0,0.00049589,120]
[404874608,1770641696566,-614.65562207,0.00049589,120]
[404874609,1770641696592,-339.08146802,0.00049589,120]
[404874610,1770641696617,-500.0,0.00049589,120]
[404874611,1770641696642,-514.91821417,0.00049589,120]
[404874612,1770641696668,-500.0,0.00049589,120]
[404874613,1770641696693,-150.86238066,0.00049589,120]
[404874614,1770641696721,-500.0,0.00049589,120]
[404874615,1770641696747,-174.3566064,0.00049589,120]
[404874616,1770641696772,-500.0,0.00049589,120]
[404874617,1770641696798,-163.17516513,0.00049589,120]
[404874618,1770641696824,-500.0,0.00049589,30]
[404874619,1770641696850,-500.0,0.00049589,120]
[404874620,1770641696877,-620.66,0.00049589,120]
[404874621,1770641696903,-583.62690949,0.00049589,120]
[404874622,1770641696931,-741.78,0.00049589,30]
[404874623,1770641696957,-1130.86,0.00049589,120]
[404874624,1770641696983,-500.0,0.00049589,120]
[404874625,1770641697009,-1559.72,0.00049589,120]
[404874626,1770641697035,-1729.14,0.00049589,30]
[404874627,1770641697061,-500.0,0.00049589,120]
[404874628,1770641697087,-500.0,0.00049589,120]
[404874629,1770641697112,-500.0,0.00049589,120]
[404874630,1770641697138,-500.0,0.00049589,120]
[404874631,1770641697165,-500.0,0.00049589,120]
[404874632,1770641697192,-449.35953323,0.00049589,120]
[404874633,1770641697220,-500.0,0.00049589,120]
[404874634,1770641697357,-500.0,0.00049589,120]
[404874635,1770641697384,-587.87,0.00049589,120]
[404874636,1770641697412,-500.0,0.00049589,120]
[404874637,1770641697441,-500.0,0.00049589,120]
[404874638,1770641697467,-500.0,0.00049589,120]
[404874639,1770641697493,-337.13956039,0.00049589,120]
[404874640,1770641697519,-500.0,0.00049589,120]
[404874641,1770641697545,-500.0,0.00049589,120]
[404874642,1770641697571,-500.0,0.00049589,120]
[404874643,1770641697596,-1641.02,0.00049589,120]
[404874644,1770641697621,-524.15748358,0.00049589,120]
[404874645,1770641697649,-2168.92,0.00049589,120]
[404874646,1770641697676,-7495.28,0.00049589,120]
[404874647,1770641697703,-13103.2,0.00049589,90]
[404874648,1770641697730,-500.0,0.00049589,120]
[404874649,1770641697755,-500.0,0.00049589,120]
[404874650,1770641697783,-500.0,0.00049589,120]
[404874651,1770641697809,-1247.11,0.00049589,120]
[404874652,1770641697834,-500.0,0.00049589,120]
[404874653,1770641697859,-5684.5,0.00049589,120]
[404874654,1770641697883,-500.0,0.00049589,120]
[404874655,1770641697908,-500.0,0.00049589,120]
[404874656,1770641697933,-644.06258884,0.00049589,120]
[404874657,1770641697960,-500.0,0.00049589,120]
[404874658,1770641697985,-2989.03,0.00049589,120]
[404874659,1770641698012,-500.0,0.00049589,120]
[404874660,1770641698038,-282.69142968,0.00049589,120]
[404874661,1770641698067,-500.0,0.00049589,120]
[404874662,1770641698094,-453.74336283,0.00049589,120]
[404874663,1770641698121,-1565.16,0.00049589,120]
[404874664,1770641698148,-500.0,0.00049589,120]
[404874665,1770641698174,-1143.37,0.00049589,120]
[404874666,1770641698202,-500.0,0.00049589,120]
[404874667,1770641698230,-1831.42,0.00049589,120]
[404874668,1770641698256,-500.0,0.00049589,120]
[404874669,1770641698282,-847.35714512,0.000496,120]
[404874670,1770641698309,-64058.15703611,0.00049863,30]
[404874671,1770641698333,-500.0,0.00049863,120]
[404874672,1770641698359,-500.0,0.00049863,120]
[404874673,1770641698385,-500.0,0.00049863,120]
[404874674,1770641698410,-500.0,0.00049863,120]
[404874675,1770641698434,-500.0,0.00049863,120]
[404874676,1770641698458,-500.0,0.00049863,120]
[404874677,1770641698482,-500.0,0.00049863,120]
[404874678,1770641698508,-500.0,0.00049863,120]
[404874679,1770641698531,-170.37942831,0.00049863,120]
[404874680,1770641698556,-500.0,0.00049863,53]
[404874681,1770641698580,-500.0,0.00049863,120]
[404874682,1770641698606,-500.0,0.00049863,120]
[404874683,1770641698632,-797.77,0.00049863,120]
[404874684,1770641698657,-3252.37,0.00049863,120]
[404874685,1770641698682,-510.09745148,0.00049863,120]
[404874686,1770641698706,-2953.2,0.00049863,120]
[404874687,1770641698730,-500.0,0.00049863,120]
[404874688,1770641698754,-500.0,0.00049863,120]
[404874689,1770641698779,-500.0,0.00049863,120]
[404874690,1770641698804,-500.0,0.00049863,120]
[404874691,1770641698829,-572.84212737,0.00049863,120]
[404874692,1770641698853,-500.0,0.00049863,120]
[404874693,1770641698878,-584.13171778,0.00049863,120]
[404874694,1770641698902,-356.66241668,0.00049863,120]
[404874695,1770641698926,-1711.02,0.00049863,120]
[404874696,1770641698950,-880.16,0.00049863,120]
[404874697,1770641698974,-500.0,0.00049863,120]
[404874698,1770641698999,-500.0,0.00049863,120]
[404874699,1770641699024,-500.0,0.00049863,120]
[404874700,1770641699049,-546.05,0.00049863,120]
[404874701,1770641699074,-275.70057319,0.00049863,120]
[404874702,1770641699098,-500.0,0.00049863,120]
[404874703,1770641699121,-2373.41,0.00049863,30]
[404874704,1770641699146,-500.0,0.00049863,120]
[404874705,1770641699170,-500.0,0.00049863,120]
[404874706,1770641699196,-802.85,0.00049863,120]
[404874707,1770641699225,-500.0,0.00049863,120]
[404874708,1770641699251,-550.28,0.00049863,120]
[404874709,1770641699278,-500.0,0.00049863,120]
[404874710,1770641699304,-500.0,0.00049863,120]
[404874711,1770641699328,-518.5960973,0.00049863,120]
[404874712,1770641699352,-352.25557683,0.00049863,120]
[404874713,1770641699378,-500.0,0.00049863,120]
[404874714,1770641699402,-859.94,0.00049863,120]
[404874715,1770641699426,-500.0,0.00049863,120]
[404874716,1770641699451,-500.0,0.00049863,120]
[404874717,1770641699476,-500.0,0.00049863,120]
[404874718,1770641699503,-500.0,0.00049863,120]
[404874719,1770641699527,-500.0,0.00049863,120]
[404874720,1770641699551,-500.0,0.00049863,120]
[404874721,1770641699576,-500.0,0.00049863,120]
[404874722,1770641699600,-500.0,0.00049863,120]
[404874723,1770641699625,-500.0,0.00049863,120]
[404874724,1770641699649,-500.0,0.00049863,120]
[404874725,1770641699673,-500.0,0.00049863,120]
[404874726,1770641699698,-500.0,0.00049863,120]
[404874727,1770641699722,-500.0,0.00049863,120]
[404874728,1770641699869,-500.0,0.00049863,30]
[404874729,1770641699895,-500.0,0.00049863,120]
[404874730,1770641699920,-620.66,0.00049863,120]
[404874731,1770641699945,-741.78,0.00049863,30]
[404874732,1770641699969,-1130.86,0.00049863,120]
[404874733,1770641699993,-237.36179612,0.00049863,120]
[404874734,1770641700019,-1559.72,0.00049863,120]
[404874735,1770641700043,-1729.14,0.00049863,30]
[404874736,1770641700069,-500.0,0.00049863,120]
[404874737,1770641700093,-500.0,0.00049863,120]
[404874738,1770641700118,-492.75005278,0.00049863,120]
[404874739,1770641700143,-406.02548016,0.00049863,120]
[404874740,1770641700170,-500.0,0.00049863,120]
[404874741,1770641700195,-500.0,0.00049863,120]
[404874742,1770641700222,-500.0,0.00049863,120]
[404874743,1770641700252,-587.87,0.00049863,120]
[404874744,1770641700281,-500.0,0.00049863,120]
[404874745,1770641700311,-153.96705775,0.00049863,120]
[404874746,1770641700339,-639.66399164,0.00049863,120]
[404874747,1770641700367,-269.32906988,0.00049863,120]
[404874748,1770641700394,-500.0,0.00049863,120]
[404874749,1770641700421,-500.0,0.00049863,120]
[404874750,1770641700449,-1641.02,0.00049863,120]
[404874751,1770641700476,-2168.92,0.00049863,120]
[404874752,1770641700506,-7495.28,0.00049863,120]
[404874753,1770641700532,-13103.2,0.00049863,90]
[404874754,1770641700560,-383.27446169,0.00049863,120]
[404874755,1770641700586,-585.77882724,0.00049863,120]
[404874756,1770641700615,-500.0,0.00049863,120]
[404874757,1770641700641,-1247.11,0.00049863,120]
[404874758,1770641700666,-643.29303456,0.00049863,120]
[404874759,1770641700692,-5684.5,0.00049863,120]
[404874760,1770641700718,-500.0,0.00049863,120]
[404874761,1770641700745,-500.0,0.00049863,120]
[404874762,1770641700771,-500.0,0.00049863,120]
[404874763,1770641700795,-2989.03,0.00049863,120]
[404874764,1770641700822,-500.0,0.00049863,120]
[404874765,1770641700847,-500.0,0.00049863,120]
[404874766,1770641700872,-1565.16,0.00049863,120]
[404874767,1770641700896,-260.36371719,0.00049863,120]
[404874768,1770641700920,-1143.37,0.00049863,120]
[404874769,1770641700945,-500.0,0.00049863,120]
[404874770,1770641700970,-1831.42,0.00049863,120]
[404874771,1770641700996,-500.0,0.00049863,120]
[404874772,1770641701020,-790.24293007,0.0004987,120]
[404874773,1770641701045,-746.61,0.00049967,120]
[404874774,1770641701069,-160.22683757,0.0005,120]
[404874775,1770641701093,-239.15723785,0.0005,90]
[404874776,1770641701117,-298.39292934,0.0005,120]
[404874777,1770641701141,-714.56872359,0.0005,120]
[404874778,1770641701165,-835.7777251,0.0005,120]
[404874779,1770641701189,-495.6684937,0.0005,30]
[404874780,1770641701212,-454.36018747,0.0005,120]
[404874781,1770641701241,-150.0,0.0005,90]
[404874782,1770641701264,-174.0,0.0005,90]
[404874783,1770641701288,-495.37324323,0.0005,120]
[404874784,1770641701313,-1825.98368104,0.0005,120]
[404874785,1770641701340,-300.0,0.0005,120]
[404874786,1770641701365,-1000.0,0.0005,120]
[404874787,1770641701390,-2000.0,0.0005,120]
[404874788,1770641701414,-153.0,0.0005,120]
[404874789,1770641701438,-167.66282298,0.0005,120]
[404874790,1770641701463,-170.0,0.0005,120]
[404874791,1770641701488,-238.0,0.0005,120]
[404874792,1770641701512,-6302.90824735,0.0005,120]
[404874793,1770641701536,-294.14583308,0.0005,120]
[404874794,1770641701561,-133703.35411868,0.00050011,120]
[404874795,1770641701587,-64058.15703611,0.00050136,30]
[404874796,1770641701612,-500.0,0.00050136,120]
[404874797,1770641701637,-500.0,0.00050136,120]
[404874798,1770641701663,-500.0,0.00050136,120]
[404874799,1770641701688,-500.0,0.00050136,120]
[404874800,1770641701712,-500.0,0.00050136,120]
[404874801,1770641701739,-500.0,0.00050136,120]
[404874802,1770641701764,-500.0,0.00050136,120]
[404874803,1770641701787,-500.0,0.00050136,120]
[404874804,1770641701810,-500.0,0.00050136,53]
[404874805,1770641701835,-500.0,0.00050136,120]
[404874806,1770641701859,-558.0946176,0.00050136,120]
[404874807,1770641701884,-797.77,0.00050136,120]
[404874808,1770641701911,-3252.37,0.00050136,120]
[404874809,1770641701937,-2953.2,0.00050136,120]
[404874810,1770641701963,-500.0,0.00050136,120]
[404874811,1770641701990,-500.0,0.00050136,120]
[404874812,1770641702016,-500.0,0.00050136,120]
[404874813,1770641702042,-518.36272501,0.00050136,120]
[404874814,1770641702071,-500.0,0.00050136,120]
[404874815,1770641702101,-1711.02,0.00050136,120]
[404874816,1770641702129,-880.16,0.00050136,120]
[404874817,1770641702154,-500.0,0.00050136,120]
[404874818,1770641702181,-500.0,0.00050136,120]
[404874819,1770641702311,-414.55460402,0.00050136,120]
[404874820,1770641702337,-546.05,0.00050136,120]
[404874821,1770641702363,-500.0,0.00050136,120]
[404874822,1770641702389,-2373.41,0.00050136,30]
[404874823,1770641702413,-500.0,0.00050136,120]
[404874824,1770641702437,-565.79,0.00050136,30]
[404874825,1770641702462,-500.0,0.00050136,120]
[404874826,1770641702489,-802.85,0.00050136,120]
[404874827,1770641702514,-500.0,0.00050136,120]
[404874828,1770641702539,-550.28,0.00050136,120]
[404874829,1770641702566,-500.0,0.00050136,120]
[404874830,1770641702592,-500.0,0.00050136,120]
[404874831,1770641702617,-500.0,0.00050136,120]
[404874832,1770641702643,-859.94,0.00050136,120]
[404874833,1770641702667,-500.0,0.00050136,120]
[404874834,1770641702694,-500.0,0.00050136,120]
[404874835,1770641702719,-608.42409785,0.00050136,120]
[404874836,1770641702748,-500.0,0.00050136,120]
[404874837,1770641702773,-500.0,0.00050136,120]
[404874838,1770641702799,-500.0,0.00050136,120]
[404874839,1770641702824,-500.0,0.00050136,120]
[404874840,1770641702851,-500.0,0.00050136,120]
[404874841,1770641702877,-500.0,0.00050136,120]
[404874842,1770641702903,-500.0,0.00050136,120]
[404874843,1770641702930,-500.0,0.00050136,120]
[404874844,1770641702959,-500.0,0.00050136,120]
[404874845,1770641702983,-617.89308152,0.00050136,120]
[404874846,1770641703008,-500.0,0.00050136,30]
[404874847,1770641703036,-500.0,0.00050136,120]
[404874848,1770641703067,-620.66,0.00050136,120]
[404874849,1770641703095,-741.78,0.00050136,30]
[404874850,1770641703129,-1130.86,0.00050136,120]
[404874851,1770641703157,-1559.72,0.00050136,120]
[404874852,1770641703187,-1729.14,0.00050136,30]
[404874853,1770641703218,-238.2841891,0.00050136,120]
[404874854,1770641703253,-500.0,0.00050136,120]
[404874855,1770641703282,-500.0,0.00050136,120]
[404874856,1770641703310,-500.0,0.00050136,120]
[404874857,1770641703338,-500.0,0.00050136,120]
[404874858,1770641703366,-587.87,0.00050136,120]
[404874859,1770641703395,-500.0,0.00050136,120]
[404874860,1770641703422,-500.0,0.00050136,120]
[404874861,1770641703449,-500.0,0.00050136,120]
[404874862,1770641703476,-1641.02,0.00050136,120]
[404874863,1770641703504,-2168.92,0.00050136,120]
[404874864,1770641703532,-7495.28,0.00050136,120]
[404874865,1770641703559,-13103.2,0.00050136,90]
[404874866,1770641703587,-500.0,0.00050136,120]
[404874867,1770641703613,-1247.11,0.00050136,120]
[404874868,1770641703639,-5684.5,0.00050136,120]
[404874869,1770641703664,-500.0,0.00050136,120]
[404874870,1770641703689,-500.0,0.00050136,120]
[404874871,1770641703714,-500.0,0.00050136,120]
[404874872,1770641703738,-2989.03,0.00050136,120]
[404874873,1770641703766,-500.0,0.00050136,120]
[404874874,1770641703793,-212.8759299,0.00050136,120]
[404874875,1770641703820,-1565.16,0.00050136,120]
[404874876,1770641703846,-1143.37,0.00050136,120]
[404874877,1770641703873,-500.0,0.00050136,120]
[404874878,1770641703901,-1831.42,0.00050136,120]
[404874879,1770641703927,-500.0,0.00050136,120]
[404874880,1770641703954,-649.97,0.00050187,30]
[404874881,1770641703981,-200.0,0.00050212,120]
[404874882,1770641704007,-200.0,0.00050212,120]
[404874883,1770641704035,-200.0,0.00050212,120]
[404874884,1770641704061,-200.0,0.00050212,120]
[404874885,1770641704087,-200.0,0.00050212,120]
[404874886,1770641704112,-200.0,0.00050212,120]
[404874887,1770641704137,-2765.90906648,0.00050233,120]
[404874888,1770641704162,-151.39402418,0.00050352,60]
[404874889,1770641704188,-151.0,0.0005041,30]
[404874890,1770641704217,-500.0,0.0005041,120]
[404874891,1770641704245,-643.68370345,0.0005041,120]
[404874892,1770641704273,-500.0,0.0005041,120]
[404874893,1770641704302,-500.0,0.0005041,120]
[404874894,1770641704330,-500.0,0.0005041,120]
[404874895,1770641704358,-500.0,0.0005041,120]
[404874896,1770641704388,-227.22608532,0.0005041,120]
[404874897,1770641704415,-500.0,0.0005041,120]
[404874898,1770641704443,-500.0,0.0005041,53]
[404874899,1770641704470,-158.21710176,0.0005041,120]
[404874900,1770641704498,-797.77,0.0005041,120]
[404874901,1770641704526,-3252.37,0.0005041,120]
[404874902,1770641704553,-2953.2,0.0005041,120]
[404874903,1770641704580,-500.0,0.0005041,120]
[404874904,1770641704608,-522.20037033,0.0005041,120]
[404874905,1770641704637,-639.71379163,0.0005041,120]
[404874906,1770641704761,-500.0,0.0005041,120]
[404874907,1770641704795,-1711.02,0.0005041,120]
[404874908,1770641704827,-880.16,0.0005041,120]
[404874909,1770641704856,-500.0,0.0005041,120]
[404874910,1770641704886,-500.0,0.0005041,120]
[404874911,1770641704916,-546.05,0.0005041,120]
[404874912,1770641704959,-500.0,0.0005041,120]
[404874913,1770641704993,-2373.41,0.0005041,30]
[404874914,1770641705023,-500.0,0.0005041,120]
[404874915,1770641705055,-485.58377681,0.0005041,120]
[404874916,1770641705086,-802.85,0.0005041,120]
[404874917,1770641705116,-500.0,0.0005041,120]
[404874918,1770641705150,-550.28,0.0005041,120]
[404874919,1770641705180,-500.0,0.0005041,120]
[404874920,1770641705210,-604.66226222,0.0005041,120]
[404874921,1770641705243,-500.0,0.0005041,120]
[404874922,1770641705274,-859.94,0.0005041,120]
[404874923,1770641705304,-500.0,0.0005041,120]
[404874924,1770641705339,-500.0,0.0005041,120]
[404874925,1770641705375,-212.79938748,0.0005041,120]
[404874926,1770641705404,-500.0,0.0005041,120]
[404874927,1770641705433,-500.0,0.0005041,120]
[404874928,1770641705460,-500.0,0.0005041,120]
[404874929,1770641705488,-500.0,0.0005041,120]
[404874930,1770641705517,-500.0,0.0005041,120]
[404874931,1770641705545,-250.57137095,0.0005041,120]
[404874932,1770641705575,-500.0,0.0005041,120]
[404874933,1770641705604,-500.0,0.0005041,120]
[404874934,1770641705639,-500.0,0.0005041,30]
[404874935,1770641705668,-500.0,0.0005041,120]
[404874936,1770641705697,-620.66,0.0005041,120]
[404874937,1770641705724,-741.78,0.0005041,30]
[404874938,1770641705751,-1130.86,0.0005041,120]
[404874939,1770641705778,-1559.72,0.0005041,120]
[404874940,1770641705806,-1729.14,0.0005041,30]
[404874941,1770641705834,-500.0,0.0005041,120]
[404874942,1770641705861,-500.0,0.0005041,120]
[404874943,1770641705889,-500.0,0.0005041,120]
[404874944,1770641705919,-500.0,0.0005041,120]
[404874945,1770641705947,-587.87,0.0005041,120]
[404874946,1770641705974,-500.0,0.0005041,120]
[404874947,1770641706003,-500.0,0.0005041,120]
[404874948,1770641706032,-500.0,0.0005041,120]
[404874949,1770641706060,-1641.02,0.0005041,120]
[404874950,1770641706087,-2168.92,0.0005041,120]
[404874951,1770641706115,-7495.28,0.0005041,120]
[404874952,1770641706141,-13103.2,0.0005041,90]
[404874953,1770641706169,-500.0,0.0005041,120]
[404874954,1770641706196,-1247.11,0.0005041,120]
[404874955,1770641706224,-5684.5,0.0005041,120]
[404874956,1770641706254,-356.64887982,0.0005041,120]
[404874957,1770641706286,-500.0,0.0005041,120]
[404874958,1770641706314,-500.0,0.0005041,120]
[404874959,1770641706341,-2989.03,0.0005041,120]
[404874960,1770641706370,-500.0,0.0005041,120]
[404874961,1770641706397,-1565.16,0.0005041,120]
[404874962,1770641706422,-1143.37,0.0005041,120]
[404874963,1770641706449,-500.0,0.0005041,120]
[404874964,1770641706475,-1831.42,0.0005041,120]
[404874965,1770641706500,-501.56333392,0.0005041,120]
[404874966,1770641706526,-200.0,0.00050497,120]
[404874967,1770641706552,-746.61,0.00050566,120]
[404874968,1770641706578,-151.39402418,0.00050662,60]
[404874969,1770641706604,-151.0,0.00050684,30]
[404874970,1770641706630,-164.87421301,0.00050684,120]
[404874971,1770641706656,-500.0,0.00050684,120]
[404874972,1770641706681,-500.0,0.00050684,120]
[404874973,1770641706706,-500.0,0.00050684,120]
[404874974,1770641706738,-500.0,0.00050684,120]
[404874975,1770641706764,-500.0,0.00050684,120]
[404874976,1770641706793,-500.0,0.00050684,53]
[404874977,1770641706818,-797.77,0.00050684,120]
[404874978,1770641706844,-3252.37,0.00050684,120]
[404874979,1770641706869,-2953.2,0.00050684,120]
[404874980,1770641706894,-500.0,0.00050684,120]
[404874981,1770641706920,-500.0,0.00050684,120]
[404874982,1770641706944,-1711.02,0.00050684,120]
[404874983,1770641706971,-880.16,0.00050684,120]
[404874984,1770641706997,-500.0,0.00050684,120]
[404874985,1770641707025,-500.0,0.00050684,120]
[404874986,1770641707051,-546.05,0.00050684,120]
[404874987,1770641707076,-500.0,0.00050684,120]
[404874988,1770641707102,-2373.41,0.00050684,30]
[404874989,1770641707128,-500.0,0.00050684,120]
[404874990,1770641707154,-802.85,0.00050684,120]
[404874991,1770641707291,-500.0,0.00050684,120]
[404874992,1770641707324,-550.28,0.00050684,120]
[404874993,1770641707354,-500.0,0.00050684,120]
[404874994,1770641707383,-500.0,0.00050684,120]
[404874995,1770641707410,-859.94,0.00050684,120]
[404874996,1770641707439,-500.0,0.00050684,120]
[404874997,1770641707467,-500.0,0.00050684,120]
[404874998,1770641707495,-500.0,0.00050684,120]
[404874999,1770641707536,-500.0,0.00050684,120]
[404875000,1770641707568,-500.0,0.00050684,120]
[404875001,1770641707599,-500.0,0.00050684,120]
[404875002,1770641707629,-500.0,0.00050684,120]
[404875003,1770641707658,-500.0,0.00050684,120]
[404875004,1770641707686,-500.0,0.00050684,120]
[404875005,1770641707715,-500.0,0.00050684,30]
[404875006,1770641707743,-500.0,0.00050684,120]
[404875007,1770641707771,-620.66,0.00050684,120]
[404875008,1770641707801,-741.78,0.00050684,30]
[404875009,1770641707834,-1130.86,0.00050684,120]
[404875010,1770641707863,-1559.72,0.00050684,120]
[404875011,1770641707891,-1729.14,0.00050684,30]
[404875012,1770641707920,-500.0,0.00050684,120]
[404875013,1770641707949,-500.0,0.00050684,120]
[404875014,1770641707978,-500.0,0.00050684,120]
[404875015,1770641708008,-500.0,0.00050684,120]
[404875016,1770641708038,-587.87,0.00050684,120]
[404875017,1770641708068,-500.0,0.00050684,120]
[404875018,1770641708098,-500.0,0.00050684,120]
[404875019,1770641708127,-500.0,0.00050684,120]
[404875020,1770641708157,-1641.02,0.00050684,120]
[404875021,1770641708192,-2168.92,0.00050684,120]
[404875022,1770641708226,-7495.28,0.00050684,120]
[404875023,1770641708257,-13103.2,0.00050684,90]
[404875024,1770641708288,-261.33718865,0.00050684,120]
[404875025,1770641708318,-1247.11,0.00050684,120]
[404875026,1770641708346,-5684.5,0.00050684,120]
[404875027,1770641708374,-500.0,0.00050684,120]
[404875028,1770641708403,-500.0,0.00050684,120]
[404875029,1770641708432,-2989.03,0.00050684,120]
[404875030,1770641708460,-500.0,0.00050684,120]
[404875031,1770641708488,-1565.16,0.00050684,120]
[404875032,1770641708514,-1143.37,0.00050684,120]
[404875033,1770641708542,-500.0,0.00050684,120]
[404875034,1770641708572,-1831.42,0.00050684,120]
[404875035,1770641708601,-153.0,0.000508,120]
[404875036,1770641708630,-565.79,0.00050821,33]
[404875037,1770641708658,-2000.0,0.000509,120]
[404875038,1770641708686,-151.0,0.00050958,30]
[404875039,1770641708713,-500.0,0.00050958,120]
[404875040,1770641708741,-469.4395381,0.00050958,120]
[404875041,1770641708769,-500.0,0.00050958,120]
[404875042,1770641708797,-500.0,0.00050958,120]
[404875043,1770641708825,-500.0,0.00050958,53]
[404875044,1770641708852,-797.77,0.00050958,120]
[404875045,1770641708879,-3252.37,0.00050958,120]
[404875046,1770641708907,-2953.2,0.00050958,120]
[404875047,1770641708937,-500.0,0.00050958,120]
[404875048,1770641708966,-500.0,0.00050958,120]
[404875049,1770641708994,-1711.02,0.00050958,120]
[404875050,1770641709023,-880.16,0.00050958,120]
[404875051,1770641709052,-490.94162894,0.00050958,120]
[404875052,1770641709079,-500.0,0.00050958,120]
[404875053,1770641709106,-546.05,0.00050958,120]
[404875054,1770641709133,-500.0,0.00050958,120]
[404875055,1770641709161,-2373.41,0.00050958,30]
[404875056,1770641709189,-500.0,0.00050958,120]
[404875057,1770641709217,-802.85,0.00050958,120]
[404875058,1770641709248,-500.0,0.00050958,120]
[404875059,1770641709278,-550.28,0.00050958,120]
[404875060,1770641709307,-500.0,0.00050958,120]
[404875061,1770641709336,-500.0,0.00050958,120]
[404875062,1770641709365,-859.94,0.00050958,120]
[404875063,1770641709395,-500.0,0.00050958,120]
[404875064,1770641709423,-500.0,0.00050958,120]
[404875065,1770641709451,-500.0,0.00050958,120]
[404875066,1770641709478,-500.0,0.00050958,120]
[404875067,1770641709504,-500.0,0.00050958,120]
[404875068,1770641709530,-500.0,0.00050958,120]
[404875069,1770641709557,-500.0,0.00050958,120]
[404875070,1770641709582,-297.11824621,0.00050958,120]
[404875071,1770641709609,-500.0,0.00050958,120]
[404875072,1770641709635,-500.0,0.00050958,30]
[404875073,1770641709770,-500.0,0.00050958,120]
[404875074,1770641709800,-620.66,0.00050958,120]
[404875075,1770641709828,-741.78,0.00050958,30]
[404875076,1770641709856,-1130.86,0.00050958,120]
[404875077,1770641709884,-1559.72,0.00050958,120]
[404875078,1770641709911,-1729.14,0.00050958,30]
[404875079,1770641709938,-500.0,0.00050958,120]
[404875080,1770641709965,-500.0,0.00050958,120]
[404875081,1770641709991,-500.0,0.00050958,120]
[404875082,1770641710017,-500.0,0.00050958,120]
[404875083,1770641710043,-587.87,0.00050958,120]
[404875084,1770641710072,-500.0,0.00050958,120]
[404875085,1770641710096,-190.68759846,0.00050958,120]
[404875086,1770641710122,-500.0,0.00050958,120]
[404875087,1770641710148,-1641.02,0.00050958,120]
[404875088,1770641710175,-2168.92,0.00050958,120]
[404875089,1770641710204,-7495.28,0.00050958,120]
[404875090,1770641710233,-13103.2,0.00050958,90]
[404875091,1770641710265,-1247.11,0.00050958,120]
[404875092,1770641710293,-5684.5,0.00050958,120]
[404875093,1770641710322,-500.0,0.00050958,120]
[404875094,1770641710351,-498.99313221,0.00050958,120]
[404875095,1770641710380,-2989.03,0.00050958,120]
[404875096,1770641710408,-368.84700066,0.00050958,120]
[404875097,1770641710433,-1565.16,0.00050958,120]